fUST/lending_fUST_20241205
["ID","MTS","AMOUNT","RATE_DAILY","PERIOD"]
[344299731,1733332244517,-500.0,0.00025205,7]
[344299733,1733332244527,-500.0,0.00025205,7]
[344299735,1733332244537,-671.24,0.00025205,7]
[344299737,1733332244546,-529.64,0.00025205,7]
[344299739,1733332244555,-500.0,0.00025205,7]
[344299742,1733332244565,-7595.34,0.00025205,7]
[344299745,1733332244574,-1069.6,0.00025205,7]
[344299748,1733332244584,-500.0,0.00025205,7]
[344299750,1733332244594,-500.0,0.00025205,7]
[344299752,1733332244604,-2291.97,0.00025205,7]
[344299754,1733332244613,-500.0,0.00025205,7]
[344299756,1733332244623,-330.92884386,0.00025205,7]
[344299758,1733332244632,-500.0,0.00025205,7]
[344299760,1733332244642,-500.0,0.00025205,7]
[344299762,1733332244652,-500.0,0.00025205,7]
[344299764,1733332244663,-2322.4,0.00025205,7]
[344299766,1733332244672,-1501.97,0.00025205,7]
[344299768,1733332244681,-500.0,0.00025205,7]
[344299770,1733332244691,-500.0,0.00025205,7]
[344299772,1733332244701,-735.94,0.00025205,7]
[344299774,1733332244710,-1754.39,0.00025205,7]
[344299776,1733332244719,-624.24,0.00025205,7]
[344299778,1733332244729,-536.7,0.00025205,7]
[344299780,1733332244739,-500.0,0.00025205,7]
[344299782,1733332244755,-466.97817818,0.00025205,7]
[344299784,1733332244765,-781.62,0.00025205,7]
[344299786,1733332244775,-2125.29,0.00025205,7]
[344299788,1733332244784,-711.75,0.00025205,7]
[344299790,1733332244794,-500.0,0.00025205,7]
[344299792,1733332244803,-500.0,0.00025205,7]
[344299794,1733332244813,-500.0,0.00025205,7]
[344299796,1733332244823,-694.53,0.00025205,7]
[344299798,1733332244832,-500.0,0.00025205,7]
[344299800,1733332244842,-500.0,0.00025205,7]
[344299802,1733332244851,-500.0,0.00025205,7]
[344299804,1733332244861,-566.66387423,0.00025205,7]
[344299806,1733332244871,-786.66,0.00025205,7]
[344299808,1733332244880,-835.77,0.00025205,7]
[344299810,1733332244890,-1372.14,0.00025205,7]
[344299812,1733332244900,-500.0,0.00025205,7]
[344299814,1733332244910,-521.37,0.00025205,7]
[344299816,1733332244919,-740.95,0.00025205,7]
[344299818,1733332244929,-500.0,0.00025205,7]
[344299820,1733332244940,-797.73,0.00025205,7]
[344299822,1733332244949,-778.97,0.00025205,7]
[344299824,1733332244959,-500.0,0.00025205,7]
[344299826,1733332244968,-500.0,0.00025205,7]
[344299828,1733332244978,-500.0,0.00025205,7]
[344299829,1733332244988,-500.0,0.00025205,7]
[344299830,1733332245001,-500.0,0.00025205,7]
[344299831,1733332245015,-7133.9,0.00025205,7]
[344299832,1733332245025,-500.0,0.00025205,7]
[344299833,1733332245034,-500.0,0.00025205,7]
[344299834,1733332245043,-1000.0,0.00025221,2]
[344299835,1733332245053,-420.0,0.0002532,2]
[344299836,1733332245062,-348.52,0.00025479,7]
[344299837,1733332245072,-500.0,0.00025479,7]
[344299839,1733332245082,-510.29,0.00025479,7]
[344299841,1733332245092,-277.89859307,0.00025479,7]
[344299843,1733332245102,-500.0,0.00025479,7]
[344299845,1733332245112,-500.0,0.00025479,7]
[344299847,1733332245122,-500.0,0.00025479,7]
[344299850,1733332245132,-782.91,0.00025479,7]
[344299852,1733332245141,-500.0,0.00025479,7]
[344299853,1733332245151,-500.0,0.00025479,7]
[344299856,1733332245162,-777.04,0.00025479,7]
[344299858,1733332245172,-500.0,0.00025479,7]
[344299860,1733332245182,-500.0,0.00025479,7]
[344299862,1733332245192,-755.06,0.00025479,7]
[344299864,1733332245202,-500.0,0.00025479,7]
[344299866,1733332245212,-500.0,0.00025479,7]
[344299868,1733332245221,-1014.22,0.00025479,7]
[344299870,1733332245231,-500.0,0.00025479,7]
[344299872,1733332245244,-500.0,0.00025479,7]
[344299874,1733332245259,-500.0,0.00025479,7]
[344299876,1733332245269,-500.0,0.00025479,7]
[344299878,1733332245278,-500.0,0.00025479,7]
[344299880,1733332245289,-348.16480999,0.00025479,7]
[344299882,1733332245299,-500.0,0.00025479,7]
[344299884,1733332245309,-500.0,0.00025479,7]
[344299886,1733332245322,-297.04726372,0.00025479,7]
[344299888,1733332245332,-500.0,0.00025479,7]
[344299890,1733332245342,-500.0,0.00025479,7]
[344299892,1733332245352,-500.0,0.00025479,7]
[344299894,1733332245363,-500.0,0.00025479,7]
[344299896,1733332245374,-729.3,0.00025479,7]
[344299898,1733332245384,-500.0,0.00025479,7]
[344299901,1733332245395,-500.0,0.00025479,7]
[344299903,1733332245405,-711.32,0.00025479,7]
[344299905,1733332245414,-500.0,0.00025479,7]
[344299907,1733332245424,-500.0,0.00025479,7]
[344299909,1733332245433,-593.64,0.00025479,7]
[344299911,1733332245443,-500.0,0.00025479,7]
[344299913,1733332245452,-1689.69,0.00025479,7]
[344299915,1733332245462,-500.0,0.00025479,7]
[344299917,1733332245471,-778.79,0.00025479,7]
[344299919,1733332245480,-500.0,0.00025479,7]
[344299920,1733332245490,-500.0,0.00025479,7]
[344299923,1733332245503,-500.0,0.00025479,7]
[344299925,1733332245514,-500.0,0.00025479,7]
[344299926,1733332245525,-795.5,0.00025479,7]
[344299929,1733332245535,-500.0,0.00025479,7]
[344299930,1733332245544,-500.0,0.00025479,7]
[344299933,1733332245554,-500.0,0.00025479,7]
[344299935,1733332245564,-500.0,0.00025479,7]
[344299936,1733332245574,-548.55,0.00025479,7]
[344299938,1733332245583,-650.94,0.00025479,7]
[344299940,1733332245593,-500.0,0.00025479,7]
[344299942,1733332245602,-500.0,0.00025479,7]
[344299944,1733332245612,-500.0,0.00025479,7]
[344299946,1733332245621,-410.06766328,0.00025479,7]
[344299949,1733332245631,-500.0,0.00025479,7]
[344299951,1733332245641,-659.69,0.00025479,7]
[344299953,1733332245651,-500.0,0.00025479,7]
[344299955,1733332245662,-500.0,0.00025479,7]
[344299957,1733332245671,-500.0,0.00025479,7]
[344299959,1733332245681,-500.0,0.00025479,7]
[344299961,1733332245690,-500.0,0.00025479,7]
[344299963,1733332245700,-500.0,0.00025479,7]
[344299965,1733332245710,-1186.21,0.00025479,7]
[344299967,1733332245720,-500.0,0.00025479,7]
[344299969,1733332245730,-500.0,0.00025479,7]
[344299971,1733332245739,-500.0,0.00025479,7]
[344299973,1733332245751,-500.0,0.00025479,7]
[344299975,1733332245761,-500.0,0.00025479,7]
[344299977,1733332245770,-500.0,0.00025479,7]
[344299979,1733332245780,-500.0,0.00025479,7]
[344299981,1733332245790,-500.0,0.00025479,7]
[344299983,1733332245800,-500.0,0.00025479,7]
[344299985,1733332245809,-915.82,0.00025479,7]
[344299987,1733332245818,-670.01,0.00025479,7]
[344299989,1733332245829,-500.0,0.00025479,7]
[344299991,1733332245839,-500.0,0.00025479,7]
[344299993,1733332245849,-500.0,0.00025479,7]
[344299995,1733332245858,-611.89,0.00025479,7]
[344299997,1733332245868,-500.0,0.00025479,7]
[344299999,1733332245879,-599.65,0.00025479,7]
[344300001,1733332245890,-3394.73,0.00025479,7]
[344300003,1733332245899,-533.85825748,0.00025479,7]
[344300005,1733332245909,-500.0,0.00025479,7]
[344300007,1733332245918,-500.0,0.00025479,7]
[344300009,1733332245928,-671.24,0.00025479,7]
[344300011,1733332245938,-529.64,0.00025479,7]
[344300014,1733332245948,-500.0,0.00025479,7]
[344300016,1733332245958,-7595.34,0.00025479,7]
[344300018,1733332245967,-1069.6,0.00025479,7]
[344300019,1733332245977,-500.0,0.00025479,7]
[344300021,1733332245987,-500.0,0.00025479,7]
[344300023,1733332246000,-2291.97,0.00025479,7]
[344300026,1733332246011,-500.0,0.00025479,7]
[344300028,1733332246021,-500.0,0.00025479,7]
[344300029,1733332246030,-500.0,0.00025479,7]
[344300031,1733332246039,-500.0,0.00025479,7]
[344300034,1733332246049,-1501.97,0.00025479,7]
[344300037,1733332246059,-2322.4,0.00025479,7]
[344300039,1733332246069,-500.0,0.00025479,7]
[344300042,1733332246078,-500.0,0.00025479,7]
[344300045,1733332246088,-735.94,0.00025479,7]
[344300048,1733332246098,-1754.39,0.00025479,7]
[344300050,1733332246107,-624.24,0.00025479,7]
[344300052,1733332246117,-536.7,0.00025479,7]
[344300054,1733332246127,-500.0,0.00025479,7]
[344300056,1733332246136,-781.62,0.00025479,7]
[344300058,1733332246145,-2125.29,0.00025479,7]
[344300060,1733332246155,-711.75,0.00025479,7]
[344300062,1733332246165,-500.0,0.00025479,7]
[344300064,1733332246174,-500.0,0.00025479,7]
[344300066,1733332246184,-500.0,0.00025479,7]
[344300068,1733332246194,-694.53,0.00025479,7]
[344300070,1733332246204,-500.0,0.00025479,7]
[344300072,1733332246214,-500.0,0.00025479,7]
[344300074,1733332246225,-500.0,0.00025479,7]
[344300076,1733332246235,-786.66,0.00025479,7]
[344300078,1733332246246,-835.77,0.00025479,7]
[344300080,1733332246262,-1372.14,0.00025479,7]
[344300082,1733332246272,-500.0,0.00025479,7]
[344300084,1733332246282,-521.37,0.00025479,7]
[344300086,1733332246292,-740.95,0.00025479,7]
[344300089,1733332246303,-500.0,0.00025479,7]
[344300091,1733332246312,-797.73,0.00025479,7]
[344300092,1733332246322,-778.97,0.00025479,7]
[344300094,1733332246334,-500.0,0.00025479,7]
[344300096,1733332246345,-500.0,0.00025479,7]
[344300099,1733332246356,-500.0,0.00025479,7]
[344300101,1733332246366,-500.0,0.00025479,7]
[344300103,1733332246376,-500.0,0.00025479,7]
[344300105,1733332246386,-7133.9,0.00025479,7]
[344300106,1733332246396,-500.0,0.00025479,7]
[344300109,1733332246406,-500.0,0.00025479,7]
[344300111,1733332246416,-155.06365616,0.00025486,2]
[344300113,1733332246426,-1000.0,0.00025521,2]
[344300114,1733332246436,-176.313,0.00025612,10]
[344300121,1733332246446,-1786.791309,0.00025653,2]
[344300123,1733332246505,-500.0,0.00025753,7]
[344300125,1733332246515,-510.29,0.00025753,7]
[344300127,1733332246524,-500.0,0.00025753,7]
[344300129,1733332246535,-419.63569997,0.00025753,7]
[344300132,1733332246546,-500.0,0.00025753,7]
[344300133,1733332246555,-782.91,0.00025753,7]
[344300136,1733332246565,-500.0,0.00025753,7]
[344300138,1733332246576,-500.0,0.00025753,7]
[344300140,1733332246586,-777.04,0.00025753,7]
[344300142,1733332246596,-500.0,0.00025753,7]
[344300144,1733332246606,-500.0,0.00025753,7]
[344300146,1733332246615,-755.06,0.00025753,7]
[344300148,1733332246625,-500.0,0.00025753,7]
[344300150,1733332246635,-500.0,0.00025753,7]
[344300152,1733332246644,-1014.22,0.00025753,7]
[344300154,1733332246654,-500.0,0.00025753,7]
[344300156,1733332246664,-500.0,0.00025753,7]
[344300158,1733332246674,-500.0,0.00025753,7]
[344300160,1733332246684,-500.0,0.00025753,7]
[344300162,1733332246693,-500.0,0.00025753,7]
[344300164,1733332246702,-500.0,0.00025753,7]
[344300166,1733332246713,-500.0,0.00025753,7]
[344300168,1733332246722,-500.0,0.00025753,7]
[344300170,1733332246731,-500.0,0.00025753,7]
[344300172,1733332246741,-500.0,0.00025753,7]
[344300174,1733332246753,-500.0,0.00025753,7]
[344300176,1733332246762,-729.3,0.00025753,7]
[344300178,1733332246772,-500.0,0.00025753,7]
[344300180,1733332246781,-500.0,0.00025753,7]
[344300182,1733332246791,-711.32,0.00025753,7]
[344300184,1733332246801,-512.40403978,0.00025753,7]
[344300186,1733332246810,-500.0,0.00025753,7]
[344300188,1733332246820,-593.64,0.00025753,7]
[344300190,1733332246829,-500.0,0.00025753,7]
[344300192,1733332246838,-1689.69,0.00025753,7]
[344300194,1733332246848,-500.0,0.00025753,7]
[344300196,1733332246857,-778.79,0.00025753,7]
[344300198,1733332246867,-500.0,0.00025753,7]
[344300200,1733332246876,-391.82137785,0.00025753,7]
[344300202,1733332246886,-500.0,0.00025753,7]
[344300204,1733332246895,-500.0,0.00025753,7]
[344300206,1733332246904,-795.5,0.00025753,7]
[344300208,1733332246913,-500.0,0.00025753,7]
[344300210,1733332246922,-500.0,0.00025753,7]
[344300212,1733332246932,-500.0,0.00025753,7]
[344300214,1733332246941,-500.0,0.00025753,7]
[344300216,1733332246951,-548.55,0.00025753,7]
[344300218,1733332246961,-650.94,0.00025753,7]
[344300220,1733332246971,-500.0,0.00025753,7]
[344300222,1733332246980,-500.0,0.00025753,7]
[344300224,1733332246989,-500.0,0.00025753,7]
[344300226,1733332247002,-500.0,0.00025753,7]
[344300228,1733332247011,-659.69,0.00025753,7]
[344300230,1733332247021,-500.0,0.00025753,7]
[344300232,1733332247030,-500.0,0.00025753,7]
[344300234,1733332247039,-500.0,0.00025753,7]
[344300236,1733332247049,-500.0,0.00025753,7]
[344300238,1733332247059,-500.0,0.00025753,7]
[344300240,1733332247068,-500.0,0.00025753,7]
[344300242,1733332247077,-1186.21,0.00025753,7]
[344300244,1733332247087,-500.0,0.00025753,7]
[344300246,1733332247098,-500.0,0.00025753,7]
[344300248,1733332247108,-500.0,0.00025753,7]
[344300250,1733332247117,-500.0,0.00025753,7]
[344300252,1733332247127,-500.0,0.00025753,7]
[344300254,1733332247136,-500.0,0.00025753,7]
[344300256,1733332247146,-500.0,0.00025753,7]
[344300258,1733332247156,-500.0,0.00025753,7]
[344300259,1733332247166,-500.0,0.00025753,7]
[344300262,1733332247176,-915.82,0.00025753,7]
[344300264,1733332247186,-670.01,0.00025753,7]
[344300266,1733332247196,-500.0,0.00025753,7]
[344300268,1733332247207,-500.0,0.00025753,7]
[344300269,1733332247216,-500.0,0.00025753,7]
[344300271,1733332247225,-611.89,0.00025753,7]
[344300273,1733332247235,-500.0,0.00025753,7]
[344300275,1733332247253,-599.65,0.00025753,7]
[344300277,1733332247263,-3394.73,0.00025753,7]
[344300279,1733332247272,-500.0,0.00025753,7]
[344300281,1733332247283,-500.0,0.00025753,7]
[344300284,1733332247293,-671.24,0.00025753,7]
[344300286,1733332247304,-529.64,0.00025753,7]
[344300288,1733332247314,-500.0,0.00025753,7]
[344300290,1733332247323,-7595.34,0.00025753,7]
[344300291,1733332247335,-1069.6,0.00025753,7]
[344300294,1733332247345,-642.15678459,0.00025753,7]
[344300295,1733332247355,-500.0,0.00025753,7]
[344300298,1733332247365,-2291.97,0.00025753,7]
[344300299,1733332247375,-500.0,0.00025753,7]
[344300302,1733332247384,-500.0,0.00025753,7]
[344300303,1733332247394,-172.8,0.00025753,7]
[344300305,1733332247405,-500.0,0.00025753,7]
[344300307,1733332247415,-1501.97,0.00025753,7]
[344300309,1733332247425,-2322.4,0.00025753,7]
[344300311,1733332247435,-500.0,0.00025753,7]
[344300313,1733332247444,-500.0,0.00025753,7]
[344300315,1733332247453,-735.94,0.00025753,7]
[344300317,1733332247465,-1754.39,0.00025753,7]
[344300319,1733332247474,-624.24,0.00025753,7]
[344300321,1733332247485,-536.7,0.00025753,7]
[344300323,1733332247494,-500.0,0.00025753,7]
[344300325,1733332247510,-781.62,0.00025753,7]
[344300328,1733332247520,-2125.29,0.00025753,7]
[344300329,1733332247530,-711.75,0.00025753,7]
[344300331,1733332247540,-500.0,0.00025753,7]
[344300333,1733332247550,-322.17320952,0.00025753,7]
[344300335,1733332247559,-694.53,0.00025753,7]
[344300337,1733332247568,-500.0,0.00025753,7]
[344300339,1733332247578,-500.0,0.00025753,7]
[344300341,1733332247587,-500.0,0.00025753,7]
[344300343,1733332247597,-786.66,0.00025753,7]
[344300345,1733332247607,-835.77,0.00025753,7]
[344300347,1733332247617,-1372.14,0.00025753,7]
[344300349,1733332247626,-500.0,0.00025753,7]
[344300351,1733332247635,-521.37,0.00025753,7]
[344300353,1733332247645,-740.95,0.00025753,7]
[344300355,1733332247654,-500.0,0.00025753,7]
[344300357,1733332247664,-778.97,0.00025753,7]
[344300359,1733332247674,-797.73,0.00025753,7]
[344300361,1733332247684,-500.0,0.00025753,7]
[344300363,1733332247693,-500.0,0.00025753,7]
[344300365,1733332247703,-500.0,0.00025753,7]
[344300367,1733332247712,-500.0,0.00025753,7]
[344300369,1733332247722,-500.0,0.00025753,7]
[344300371,1733332247731,-7133.9,0.00025753,7]
[344300373,1733332247741,-500.0,0.00025753,7]
[344300375,1733332247755,-500.0,0.00025753,7]
[344300377,1733332247764,-161.0,0.00026,2]
[344300379,1733332247774,-500.0,0.00026027,7]
[344300381,1733332247783,-510.29,0.00026027,7]
[344300383,1733332247793,-500.0,0.00026027,7]
[344300385,1733332247802,-500.0,0.00026027,7]
[344300387,1733332247811,-782.91,0.00026027,7]
[344300389,1733332247821,-500.0,0.00026027,7]
[344300391,1733332247830,-500.0,0.00026027,7]
[344300393,1733332247841,-777.04,0.00026027,7]
[344300395,1733332247851,-178.64611319,0.00026027,7]
[344300397,1733332247860,-500.0,0.00026027,7]
[344300399,1733332247870,-755.06,0.00026027,7]
[344300401,1733332247880,-500.0,0.00026027,7]
[344300403,1733332247889,-500.0,0.00026027,7]
[344300405,1733332247900,-1014.22,0.00026027,7]
[344300407,1733332247910,-500.0,0.00026027,7]
[344300409,1733332247920,-500.0,0.00026027,7]
[344300411,1733332247930,-500.0,0.00026027,7]
[344300413,1733332247941,-500.0,0.00026027,7]
[344300416,1733332247950,-500.0,0.00026027,7]
[344300417,1733332247960,-500.0,0.00026027,7]
[344300420,1733332247970,-500.0,0.00026027,7]
[344300422,1733332247980,-500.0,0.00026027,7]
[344300423,1733332247990,-638.57702075,0.00026027,7]
[344300426,1733332248004,-500.0,0.00026027,7]
[344300428,1733332248015,-500.0,0.00026027,7]
[344300430,1733332248026,-729.3,0.00026027,7]
[344300432,1733332248036,-485.58203107,0.00026027,7]
[344300434,1733332248046,-500.0,0.00026027,7]
[344300436,1733332248056,-711.32,0.00026027,7]
[344300438,1733332248066,-500.0,0.00026027,7]
[344300440,1733332248076,-593.64,0.00026027,7]
[344300442,1733332248086,-500.0,0.00026027,7]
[344300444,1733332248096,-1689.69,0.00026027,7]
[344300446,1733332248106,-500.0,0.00026027,7]
[344300448,1733332248115,-778.79,0.00026027,7]
[344300450,1733332248125,-500.0,0.00026027,7]
[344300452,1733332248135,-500.0,0.00026027,7]
[344300454,1733332248146,-500.0,0.00026027,7]
[344300456,1733332248156,-795.5,0.00026027,7]
[344300458,1733332248166,-500.0,0.00026027,7]
[344300460,1733332248176,-500.0,0.00026027,7]
[344300462,1733332248186,-500.0,0.00026027,7]
[344300464,1733332248197,-500.0,0.00026027,7]
[344300466,1733332248207,-548.55,0.00026027,7]
[344300468,1733332248217,-650.94,0.00026027,7]
[344300470,1733332248227,-500.0,0.00026027,7]
[344300472,1733332248238,-354.54082786,0.00026027,7]
[344300474,1733332248254,-500.0,0.00026027,7]
[344300476,1733332248265,-500.0,0.00026027,7]
[344300478,1733332248276,-659.69,0.00026027,7]
[344300480,1733332248286,-500.0,0.00026027,7]
[344300482,1733332248297,-448.07452385,0.00026027,7]
[344300484,1733332248307,-500.0,0.00026027,7]
[344300486,1733332248318,-500.0,0.00026027,7]
[344300488,1733332248331,-500.0,0.00026027,7]
[344300490,1733332248343,-500.0,0.00026027,7]
[344300492,1733332248355,-1186.21,0.00026027,7]
[344300494,1733332248366,-500.0,0.00026027,7]
[344300496,1733332248377,-500.0,0.00026027,7]
[344300498,1733332248387,-500.0,0.00026027,7]
[344300500,1733332248398,-500.0,0.00026027,7]
[344300502,1733332248411,-500.0,0.00026027,7]
[344300504,1733332248422,-500.0,0.00026027,7]
[344300506,1733332248433,-500.0,0.00026027,7]
[344300508,1733332248442,-500.0,0.00026027,7]
[344300510,1733332248452,-915.82,0.00026027,7]
[344300513,1733332248464,-670.01,0.00026027,7]
[344300515,1733332248475,-386.27587082,0.00026027,7]
[344300517,1733332248485,-500.0,0.00026027,7]
[344300519,1733332248496,-500.0,0.00026027,7]
[344300521,1733332248511,-611.89,0.00026027,7]
[344300523,1733332248522,-500.0,0.00026027,7]
[344300525,1733332248531,-599.65,0.00026027,7]
[344300527,1733332248542,-3394.73,0.00026027,7]
[344300529,1733332248552,-500.0,0.00026027,7]
[344300531,1733332248562,-500.0,0.00026027,7]
[344300533,1733332248572,-671.24,0.00026027,7]
[344300535,1733332248582,-529.64,0.00026027,7]
[344300537,1733332248592,-500.0,0.00026027,7]
[344300539,1733332248603,-7595.34,0.00026027,7]
[344300541,1733332248613,-1069.6,0.00026027,7]
[344300543,1733332248622,-2291.97,0.00026027,7]
[344300545,1733332248633,-500.0,0.00026027,7]
[344300547,1733332248643,-500.0,0.00026027,7]
[344300549,1733332248653,-338.27212839,0.00026027,7]
[344300551,1733332248665,-500.0,0.00026027,7]
[344300553,1733332248676,-1501.97,0.00026027,7]
[344300556,1733332248688,-2322.4,0.00026027,7]
[344300557,1733332248698,-500.0,0.00026027,7]
[344300559,1733332248709,-500.0,0.00026027,7]
[344300562,1733332248720,-735.94,0.00026027,7]
[344300564,1733332248730,-1754.39,0.00026027,7]
[344300566,1733332248742,-624.24,0.00026027,7]
[344300568,1733332248755,-536.7,0.00026027,7]
[344300569,1733332248766,-500.0,0.00026027,7]
[344300571,1733332248776,-781.62,0.00026027,7]
[344300574,1733332248786,-2125.29,0.00026027,7]
[344300576,1733332248796,-711.75,0.00026027,7]
[344300578,1733332248806,-500.0,0.00026027,7]
[344300580,1733332248816,-694.53,0.00026027,7]
[344300581,1733332248826,-500.0,0.00026027,7]
[344300584,1733332248836,-500.0,0.00026027,7]
[344300586,1733332248847,-500.0,0.00026027,7]
[344300588,1733332248857,-786.66,0.00026027,7]
[344300590,1733332248868,-835.77,0.00026027,7]
[344300592,1733332248879,-1372.14,0.00026027,7]
[344300594,1733332248890,-500.0,0.00026027,7]
[344300596,1733332248901,-521.37,0.00026027,7]
[344300598,1733332248911,-740.95,0.00026027,7]
[344300600,1733332248921,-500.0,0.00026027,7]
[344300602,1733332248932,-778.97,0.00026027,7]
[344300604,1733332248943,-797.73,0.00026027,7]
[344300606,1733332248953,-500.0,0.00026027,7]
[344300608,1733332248963,-500.0,0.00026027,7]
[344300610,1733332248973,-500.0,0.00026027,7]
[344300612,1733332248985,-500.0,0.00026027,7]
[344300614,1733332248995,-500.0,0.00026027,7]
[344300616,1733332249012,-7133.9,0.00026027,7]
[344300618,1733332249022,-500.0,0.00026027,7]
[344300620,1733332249033,-500.0,0.00026027,7]
[344300622,1733332249043,-402.3709172,0.00026033,2]
[344300624,1733332249052,-161.0,0.00026164,2]
[344300626,1733332249062,-1500.0,0.00026222,2]
[344300628,1733332249072,-1786.79130898,0.00026247,2]
[344300630,1733332249083,-500.0,0.00026301,7]
[344300632,1733332249093,-510.29,0.00026301,7]
[344300635,1733332249104,-376.56682792,0.00026301,7]
[344300637,1733332249115,-500.0,0.00026301,7]
[344300639,1733332249126,-782.91,0.00026301,7]
[344300641,1733332249135,-500.0,0.00026301,7]
[344300642,1733332249145,-500.0,0.00026301,7]
[344300644,1733332249155,-777.04,0.00026301,7]
[344300647,1733332249166,-532.82073878,0.00026301,7]
[344300649,1733332249176,-755.06,0.00026301,7]
[344300651,1733332249186,-500.0,0.00026301,7]
[344300653,1733332249196,-500.0,0.00026301,7]
[344300655,1733332249206,-1014.22,0.00026301,7]
[344300657,1733332249217,-500.0,0.00026301,7]
[344300659,1733332249228,-500.0,0.00026301,7]
[344300661,1733332249240,-500.0,0.00026301,7]
[344300663,1733332249256,-500.0,0.00026301,7]
[344300665,1733332249267,-500.0,0.00026301,7]
[344300667,1733332249278,-500.0,0.00026301,7]
[344300669,1733332249289,-500.0,0.00026301,7]
[344300671,1733332249300,-500.0,0.00026301,7]
[344300673,1733332249310,-500.0,0.00026301,7]
[344300675,1733332249323,-500.0,0.00026301,7]
[344300677,1733332249333,-729.3,0.00026301,7]
[344300679,1733332249343,-500.0,0.00026301,7]
[344300681,1733332249354,-711.32,0.00026301,7]
[344300682,1733332249364,-500.0,0.00026301,7]
[344300683,1733332249375,-593.64,0.00026301,7]
[344300684,1733332249387,-500.0,0.00026301,7]
[344300685,1733332249398,-1689.69,0.00026301,7]
[344300686,1733332249408,-500.0,0.00026301,7]
[344300687,1733332249420,-778.79,0.00026301,7]
[344300688,1733332249430,-500.0,0.00026301,7]
[344300689,1733332249440,-500.0,0.00026301,7]
[344300690,1733332249450,-500.0,0.00026301,7]
[344300691,1733332249462,-795.5,0.00026301,7]
[344300692,1733332249472,-500.0,0.00026301,7]
[344300694,1733332249483,-500.0,0.00026301,7]
[344300695,1733332249494,-500.0,0.00026301,7]
[344300697,1733332249507,-500.0,0.00026301,7]
[344300699,1733332249517,-548.55,0.00026301,7]
[344300701,1733332249527,-650.94,0.00026301,7]
[344300703,1733332249539,-500.0,0.00026301,7]
[344300705,1733332249549,-500.0,0.00026301,7]
[344300707,1733332249559,-500.0,0.00026301,7]
[344300709,1733332249570,-659.69,0.00026301,7]
[344300711,1733332249580,-500.0,0.00026301,7]
[344300713,1733332249591,-500.0,0.00026301,7]
[344300715,1733332249602,-500.0,0.00026301,7]
[344300717,1733332249612,-500.0,0.00026301,7]
[344300719,1733332249622,-500.0,0.00026301,7]
[344300721,1733332249634,-1186.21,0.00026301,7]
[344300723,1733332249644,-500.0,0.00026301,7]
[344300725,1733332249654,-500.0,0.00026301,7]
[344300727,1733332249664,-500.0,0.00026301,7]